bitfinex/quotes_SOLUSD_20250507
["timestamp","ask_amount","ask_price","bid_price","bid_amount"]
[1746626049192,6.80924548,146.86,146.82,44.76927027]
[1746626049491,6.80924548,146.86,146.82,37.95823202]
[1746626050310,27.7274775,146.86,146.82,37.95823202]
[1746626051213,27.72718056,146.87,146.82,37.95823202]
[1746626051418,6.80894854,146.87,146.83,20.91823202]
[1746626051908,27.72672432,146.88,146.83,27.7287659]
[1746626052109,144.50765018,146.9,146.85,20.91823202]
[1746626052296,165.4258822,146.9,146.85,20.91823202]
[1746626052498,191.4258822,146.9,146.85,20.91823202]
[1746626053818,191.4258822,146.9,146.85,27.72777416]
[1746626054016,165.4258822,146.9,146.85,27.72777416]
[1746626054218,165.4258822,146.9,146.86,20.91823202]
[1746626055318,165.4258822,146.9,146.85,20.91823202]
[1746626056216,20.91823202,146.9,146.86,20.91823202]
[1746626056406,20.91823202,146.91,146.87,20.91823202]
[1746626056798,32.80674401,146.92,146.88,20.91823202]
[1746626056997,53.72497603,146.92,146.87,20.91823202]
[1746626057612,53.72497603,146.92,146.87,27.72665676]
[1746626057810,46.91823202,146.92,146.87,27.72665676]
[1746626059017,46.91823202,146.92,146.88,20.91823202]
[1746626060138,26.0,146.92,146.89,6.80781537]
[1746626060326,145.4873,146.95,146.9,20.91823202]
[1746626060327,26.0,146.94,146.9,20.91823202]
[1746626060503,46.91823202,146.94,146.89,27.72604739]
[1746626060699,20.91823202,146.93,146.89,27.72604739]
[1746626061824,20.91823202,146.93,146.88,27.72651088]
[1746626062127,20.91823202,146.9,146.87,17.04]
[1746626063503,6.80597613,146.93,146.88,20.91823202]
[1746626063698,6.80597613,146.93,146.87,23.84873313]
[1746626063699,27.72420815,146.93,146.89,20.91823202]
[1746626064318,20.91823202,146.93,146.89,27.72598104]
[1746626064508,53.72391348,146.94,146.89,27.72598104]
[1746626064816,32.80568146,146.94,146.9,20.91823202]
[1746626065012,20.91823202,146.93,146.89,20.91823202]
[1746626065220,20.91823202,146.93,146.88,27.72632738]
[1746626065438,20.91823202,146.93,146.89,20.91823202]
[1746626065616,53.72391348,146.94,146.9,20.91823202]
[1746626066113,27.7244982,146.93,146.89,20.91823202]
[1746626066838,20.91823202,146.92,146.87,17.04]
[1746626067133,20.91823202,146.92,146.87,44.76690532]
[1746626067323,27.7244982,146.93,146.88,20.91823202]
[1746626068339,27.7244982,146.93,146.88,27.72626033]
[1746626068636,20.91823202,146.93,146.89,20.91823202]
[1746626069020,53.72385544,146.94,146.89,20.91823202]
[1746626070314,20.91823202,146.93,146.88,6.80802831]
[1746626070649,20.91823202,146.91,146.87,17.04]
[1746626070943,20.91823202,146.89,146.87,17.04]
[1746626071244,20.91823202,146.88,146.87,17.04]
[1746626071428,20.91823202,146.89,146.87,17.04]
[1746626071940,20.91823202,146.88,146.87,17.04]
[1746626072242,20.91823202,146.88,146.84,20.91823202]
[1746626072429,6.80821196,146.89,146.84,20.91823202]
[1746626072616,20.91823202,146.88,146.84,20.91823202]
[1746626073138,20.91823202,146.87,146.83,17.0]
[1746626073638,6.80821196,146.89,146.85,20.91823202]
[1746626073639,20.91823202,146.89,146.85,20.91823202]
[1746626074043,20.91823202,146.88,146.83,23.81057074]
[1746626074245,20.91823202,146.88,146.84,27.72805667]
[1746626074718,27.72608291,146.89,146.85,20.91823202]
[1746626075225,20.91823202,146.89,146.85,20.91823202]
[1746626075426,20.91823202,146.89,146.84,27.72805667]
[1746626075427,27.72607975,146.89,146.84,27.72805667]
[1746626075845,20.91823202,146.89,146.84,27.72805667]
[1746626076844,20.91823202,146.88,146.83,37.91823202]
[1746626077049,20.91823202,146.87,146.83,17.0]
[1746626077747,20.91823202,146.87,146.83,37.91823202]
[1746626078644,20.91823202,146.88,146.83,44.72878876]
[1746626079243,27.72691378,146.88,146.83,44.72878876]
[1746626079436,27.72691378,146.88,146.83,23.81055674]
[1746626079636,27.72691378,146.88,146.83,44.72878876]
[1746626079939,27.72691378,146.88,146.84,20.91823202]
[1746626080142,27.72691378,146.88,146.83,44.72878876]
[1746626080642,27.72691378,146.88,146.84,20.91823202]
[1746626081742,26.0,146.89,146.85,20.91823202]
[1746626081945,46.91823202,146.89,146.85,20.91823202]
[1746626082326,20.91823202,146.9,146.85,20.91823202]
[1746626083222,20.91823202,146.89,146.85,20.91823202]
[1746626083526,27.72625322,146.89,146.85,20.91823202]
[1746626084253,27.72625322,146.89,146.84,6.81011325]
[1746626084426,27.72625322,146.89,146.85,20.91823202]
[1746626085545,27.72580753,146.9,146.85,27.72759557]
[1746626085846,27.72580753,146.9,146.86,20.91823202]
[1746626087459,6.80757551,146.9,146.86,20.91823202]
[1746626087834,6.807107,146.91,146.88,20.91823202]
[1746626088032,27.72533902,146.91,146.87,20.91823202]
[1746626088563,27.72437664,146.93,146.88,20.91823202]
[1746626088941,20.91823202,146.92,146.88,20.91823202]
[1746626089250,20.91823202,146.91,146.87,20.91823202]
[1746626089551,27.72482285,146.92,146.87,27.72692321]
[1746626090057,27.72482285,146.92,146.87,20.91823202]
[1746626090749,20.91823202,146.9,146.86,20.91823202]
[1746626091855,20.91823202,146.91,146.86,20.91823202]
[1746626092059,20.91823202,146.91,146.87,20.91823202]
[1746626092561,37.93429518,146.92,146.87,20.91823202]
[1746626092741,20.91823202,146.92,146.88,20.91823202]
[1746626092943,20.91823202,146.92,146.87,20.91823202]
[1746626093145,20.91823202,146.91,146.87,20.91823202]
[1746626093442,20.91823202,146.91,146.86,20.91823202]
[1746626093756,6.80735194,146.9,146.84,18.64964886]
[1746626093947,27.72558396,146.9,146.86,20.91823202]
[1746626094259,6.80735194,146.9,146.86,20.91823202]
[1746626094668,6.80735194,146.9,146.84,6.81013347]
[1746626094864,20.91823202,146.9,146.86,20.91823202]
[1746626095072,20.91823202,146.91,146.86,20.91823202]
[1746626095538,20.91823202,146.91,146.87,20.91823202]
[1746626095732,20.91823202,146.92,146.88,20.91823202]
[1746626095965,27.72419404,146.93,146.88,20.91823202]
[1746626096257,20.91823202,146.92,146.88,20.91823202]
[1746626096861,27.72498421,146.92,146.88,20.91823202]
[1746626097264,27.72498421,146.92,146.87,44.72689238]
[1746626097444,20.91823202,146.91,146.87,44.72689238]
[1746626097969,27.72524438,146.91,146.87,37.91823202]
[1746626098268,20.91823202,146.9,146.87,17.0]
[1746626098763,27.72524438,146.91,146.87,17.0]
[1746626099067,27.72524438,146.91,146.87,37.91823202]
[1746626100261,27.72524438,146.91,146.87,17.0]
[1746626101669,27.72524438,146.91,146.86,20.91823202]
[1746626102754,27.72524438,146.91,146.87,20.91823202]
[1746626102948,6.80701236,146.91,146.87,20.91823202]
[1746626103160,6.80701236,146.91,146.88,20.91823202]
[1746626103370,6.80701236,146.91,146.87,20.91823202]
[1746626103557,27.72524438,146.91,146.87,20.91823202]
[1746626104276,20.91823202,146.92,146.87,20.91823202]
[1746626105567,20.91823202,146.9,146.86,20.91823202]
[1746626106066,20.91823202,146.9,146.85,37.87823202]
[1746626106268,27.72588673,146.9,146.85,44.68771292]
[1746626106566,27.72588673,146.9,146.86,20.91823202]
[1746626107965,27.72588673,146.9,146.85,44.68771292]
[1746626109973,20.91823202,146.89,146.85,16.96]
[1746626110160,20.91823202,146.88,146.85,16.96]
[1746626113079,27.72675379,146.88,146.85,16.96]
[1746626114676,6.80852177,146.88,146.85,16.96]
[1746626114874,6.80803128,146.89,146.85,37.87823202]
[1746626115386,6.80756376,146.9,146.87,20.91823202]
[1746626115580,27.72579578,146.9,146.86,20.91823202]
[1746626115880,20.91823202,146.89,146.85,37.87823202]
[1746626117782,27.72632576,146.89,146.85,16.96]
[1746626118780,6.80688857,146.91,146.86,20.91823202]
[1746626118952,6.80615863,146.93,146.9,20.91823202]
[1746626119156,6.80503572,146.95,146.91,20.91823202]
[1746626119357,26.0,146.94,146.9,20.91823202]
[1746626119559,26.0,146.94,146.91,20.91823202]
[1746626120069,32.8056922,146.94,146.9,20.91823202]
[1746626121480,53.72392422,146.94,146.89,20.91823202]
[1746626121683,27.72455781,146.93,146.89,20.91823202]
[1746626122079,27.72455781,146.93,146.88,6.80827886]
[1746626122276,27.72455781,146.93,146.89,20.91823202]
[1746626122993,6.80632579,146.93,146.89,20.91823202]
[1746626123374,6.80632579,146.93,146.9,20.91823202]
[1746626123582,6.80565546,146.94,146.91,20.91823202]
[1746626124291,20.91823202,146.95,146.91,20.91823202]
[1746626124292,23.81201852,146.99,146.93,20.91823202]
[1746626124492,53.72141591,146.99,146.94,20.91823202]
[1746626124869,27.72141591,146.99,146.94,20.91823202]
[1746626125070,53.72141591,146.99,146.94,20.91823202]
[1746626125272,32.80318389,146.99,146.95,20.91823202]
[1746626125981,53.72141591,146.99,146.95,20.91823202]
[1746626126304,53.72141591,146.99,146.91,16.96]
[1746626126305,20.91823202,146.98,146.92,6.80626837]
[1746626126591,20.91823202,146.97,146.93,20.91823202]
[1746626127095,27.72230303,146.98,146.93,20.91823202]
[1746626127589,27.72230303,146.98,146.94,20.91823202]
[1746626127796,6.80407101,146.98,146.94,20.91823202]
[1746626128197,26.0,146.99,146.96,20.91823202]
[1746626128384,6.80225834,147.01,146.97,20.91823202]
[1746626128697,27.72049036,147.01,146.97,20.91823202]
[1746626128991,27.72049036,147.01,146.96,20.91823202]
[1746626130781,27.72049036,147.01,146.97,20.91823202]
[1746626132295,20.91823202,147.0,146.96,37.83823202]
[1746626132799,27.72095382,147.0,146.96,37.83823202]
[1746626133097,6.8027218,147.0,146.96,37.83823202]
[1746626135597,27.72064162,147.01,146.96,37.83823202]
[1746626136197,27.72064162,147.01,146.96,44.64274512]
[1746626136496,137.7,147.04,146.99,20.91823202]
[1746626136675,27.71931625,147.04,147.0,20.91823202]
[1746626136992,27.71870005,147.05,147.01,20.91823202]
[1746626137175,10.6800447,147.06,147.02,20.91823202]
[1746626137377,10.6800447,147.06,147.03,20.91823202]
[1746626137596,10.6800447,147.06,147.02,20.91823202]
[1746626137898,6.79953541,147.07,147.03,20.91823202]
[1746626138103,27.71776743,147.07,147.03,20.91823202]
[1746626138272,53.71744297,147.08,147.03,20.91823202]
[1746626138472,32.79921095,147.08,147.04,20.91823202]
[1746626138672,53.71744297,147.08,147.04,20.91823202]
[1746626139697,6.79874526,147.09,147.01,16.92]
[1746626139898,27.71697728,147.09,147.05,20.91823202]
[1746626140395,27.71697728,147.09,147.04,20.91823202]
[1746626140701,27.71697728,147.09,147.05,20.91823202]
[1746626140901,6.79874526,147.09,147.05,20.91823202]
[1746626141085,27.71697728,147.09,147.05,20.91823202]
[1746626142491,27.71697728,147.09,147.04,20.91823202]
[1746626142695,20.91823202,147.07,147.02,8.39881628]
[1746626143004,6.7999456,147.06,147.02,20.91823202]
[1746626143388,6.7999456,147.06,147.03,20.91823202]
[1746626143790,27.7177893,147.07,147.03,20.91823202]
[1746626143978,6.79955728,147.07,147.03,20.91823202]
[1746626146205,27.7177893,147.07,147.03,20.91823202]
[1746626146432,20.91823202,147.06,147.01,16.92]
[1746626146801,20.91823202,147.05,147.01,16.92]
[1746626146998,20.91823202,147.06,147.01,37.83823202]
[1746626147382,20.91823202,147.05,147.01,37.83823202]
[1746626147581,20.91823202,147.05,147.01,44.64046684]
[1746626147883,13.00765728,147.07,147.01,23.72223482]
[1746626148082,20.91823202,147.06,147.01,44.64046684]
[1746626149016,20.91823202,147.05,147.01,23.72223482]
[1746626149305,20.91823202,147.06,147.02,20.91823202]
[1746626149508,27.12633202,147.07,147.03,20.91823202]
[1746626149705,20.91823202,147.07,147.03,20.91823202]
[1746626150305,20.91823202,147.06,147.02,20.91823202]
[1746626151807,20.91823202,147.06,147.02,27.71958395]
[1746626153113,26.0,147.08,147.02,6.80135193]
[1746626153288,27.71639414,147.1,147.06,20.91823202]
[1746626153493,53.71639414,147.1,147.06,20.91823202]
[1746626153708,53.71639414,147.1,147.05,20.91823202]
[1746626154112,27.71639414,147.1,147.05,27.71831149]
[1746626154407,53.71639414,147.1,147.05,27.71831149]
[1746626154715,46.91823202,147.1,147.05,27.71831149]
[1746626156113,53.71639332,147.1,147.05,27.71831149]
[1746626156314,20.91823202,147.09,147.05,27.71831149]
[1746626161814,27.7168134,147.09,147.05,27.71831149]
[1746626162012,27.7168134,147.09,147.04,27.71891103]
[1746626162399,27.7168134,147.09,147.05,20.91823202]
[1746626162807,27.7168134,147.09,147.04,27.71891103]
[1746626163723,27.7168134,147.09,147.05,20.91823202]
[1746626164205,27.7168134,147.09,147.05,27.71863421]
[1746626164823,20.91823202,147.08,147.05,6.80040219]
[1746626165327,20.91823202,147.08,147.04,6.80071181]
[1746626165523,20.91823202,147.07,147.03,44.59940425]
[1746626165725,20.91823202,147.07,147.03,23.68117223]
[1746626169735,27.7177685,147.07,147.03,23.68117223]
[1746626169905,27.7177685,147.07,147.03,16.88]
[1746626169906,20.91823202,147.05,147.03,16.88]
[1746626170609,20.91823202,147.06,147.03,16.88]
[1746626170805,6.7985587,147.09,147.03,44.59954622]
[1746626171018,20.91823202,147.08,147.04,20.91823202]
[1746626172131,27.71679072,147.09,147.05,20.91823202]
[1746626172334,53.71654698,147.1,147.05,20.91823202]
[1746626172634,20.91823202,147.09,147.04,27.71882151]
[1746626173534,20.91823202,147.09,147.04,20.91823202]
[1746626173740,20.91823202,147.08,147.04,20.91823202]
[1746626174228,27.71679072,147.09,147.04,20.91823202]
[1746626175538,27.71679072,147.09,147.04,27.71906181]
[1746626175735,27.71679072,147.09,147.05,20.91823202]
[1746626176460,6.7985587,147.09,147.04,20.91823202]
[1746626176641,27.71679072,147.09,147.04,20.91823202]
[1746626177832,27.71766344,147.08,147.04,20.91823202]
[1746626178239,20.91823202,147.07,147.03,16.88]
[1746626178534,20.91823202,147.07,147.03,37.79823202]
[1746626178738,27.71766344,147.08,147.03,44.59949026]
[1746626179043,27.71766344,147.08,147.03,23.68125824]
[1746626179236,27.71766344,147.08,147.03,37.79823202]
[1746626179547,27.71766344,147.08,147.04,20.91823202]
[1746626179845,27.71700403,147.09,147.04,27.71895059]
[1746626180013,27.71700403,147.09,147.05,20.91823202]
[1746626180727,27.71700403,147.09,147.04,20.91823202]
[1746626180928,20.91823202,147.07,147.03,16.88]
[1746626181330,20.91823202,147.06,147.03,16.88]
[1746626181529,20.91823202,147.07,147.03,16.88]
[1746626182143,6.7999456,147.06,147.03,16.88]
[1746626182320,27.71817762,147.06,147.03,16.88]
[1746626182642,20.91823202,147.04,147.0,20.91823202]
[1746626182955,20.91823202,147.04,146.99,20.91823202]
[1746626183453,20.91823202,147.04,146.98,25.19196274]
[1746626183743,20.91823202,147.02,146.98,44.60169476]
[1746626184226,27.72005951,147.02,146.98,37.79823202]
[1746626184541,20.91823202,147.02,146.98,44.60165893]
[1746626184842,27.71971184,147.03,146.98,44.60165893]
[1746626185331,27.71871985,147.05,147.01,20.91823202]
[1746626187045,27.71871985,147.05,147.0,27.72075385]
[1746626187249,27.71871985,147.05,146.99,6.80318389]
[1746626187435,20.91823202,147.04,146.99,6.80318389]
[1746626187635,6.80048783,147.05,147.01,20.91823202]
[1746626187829,27.71871985,147.05,147.01,20.91823202]
[1746626189243,27.71833711,147.06,147.01,27.72037364]
[1746626189424,27.71833711,147.06,147.02,20.91823202]
[1746626189921,27.71833711,147.06,147.01,27.72037364]
[1746626190959,27.71833711,147.06,147.01,20.91823202]
[1746626191248,27.71833711,147.06,147.0,6.80250144]
[1746626191249,20.91823202,147.04,147.0,27.72073346]
[1746626191749,20.91823202,147.04,147.0,20.91823202]
[1746626191938,20.91823202,147.03,146.98,16.88]
[1746626192143,20.91823202,147.03,146.98,44.60181358]
[1746626192538,20.91823202,147.03,146.99,20.91823202]
[1746626192948,20.91823202,147.04,147.0,20.91823202]
[1746626193160,27.71956508,147.03,146.98,16.88]
[1746626193337,27.71956508,147.03,146.99,20.91823202]
[1746626193544,27.71956508,147.03,146.98,23.68354109]
[1746626193834,27.71956508,147.03,146.99,20.91823202]
[1746626195952,53.71956508,147.03,146.99,20.91823202]
[1746626196751,27.71956508,147.03,146.98,16.88]
[1746626197052,27.71956508,147.03,146.98,37.79823202]
[1746626197352,6.80133306,147.03,146.98,37.79823202]
[1746626197551,27.71956508,147.03,146.98,37.79823202]
[1746626197858,27.71956508,147.03,146.99,20.91823202]
[1746626198657,6.80133306,147.03,146.99,20.91823202]
[1746626198864,6.80133306,147.03,147.0,20.91823202]
[1746626199036,6.80107492,147.04,147.01,20.91823202]
[1746626199559,6.80053293,147.05,147.02,20.91823202]
[1746626200149,6.80053293,147.05,146.98,16.88]
[1746626200150,27.71876495,147.05,147.01,20.91823202]
[1746626200850,20.91823202,147.04,146.99,20.91823202]
[1746626201265,20.91823202,147.04,147.0,20.91823202]
[1746626201433,20.91823202,147.04,146.99,20.91823202]
[1746626203552,27.71932072,147.04,147.0,20.91823202]
[1746626203951,6.8010887,147.04,147.0,20.91823202]
[1746626204558,6.8010887,147.04,147.01,20.91823202]
[1746626204734,20.91823202,147.05,147.01,20.91823202]
[1746626205142,20.91823202,147.04,147.0,20.91823202]
[1746626207772,27.71956508,147.03,146.99,20.91823202]
[1746626208456,27.71956508,147.03,146.99,37.75823202]
[1746626210461,27.71956508,147.03,146.99,16.84]
[1746626211673,27.71956508,147.03,146.99,37.75823202]
[1746626216178,27.7193151,147.04,147.0,20.91823202]
[1746626216350,6.80108308,147.04,147.0,20.91823202]
[1746626217073,6.7999456,147.06,147.01,20.91823202]
[1746626217375,27.71817762,147.06,147.01,20.91823202]
[1746626217747,20.91823202,147.05,147.01,20.91823202]
[1746626217947,20.91823202,147.05,147.0,20.91823202]
[1746626218268,27.7188682,147.05,147.0,20.91823202]
[1746626219880,27.7188682,147.05,147.01,20.91823202]
[1746626223779,27.7188682,147.05,146.99,16.84]
[1746626223980,27.7188682,147.05,147.01,20.91823202]
[1746626224178,20.91823202,147.04,147.0,20.91823202]
[1746626225077,27.7188682,147.05,147.01,20.91823202]
[1746626225386,27.7183648,147.06,147.02,20.91823202]
[1746626226283,20.91823202,147.05,147.01,20.91823202]
[1746626227767,20.91823202,147.05,147.02,16.8]
[1746626228789,6.80013278,147.06,147.02,16.8]
[1746626229019,20.91823202,147.05,147.02,16.8]
[1746626232381,27.71883714,147.05,147.02,16.8]
[1746626235795,20.13599899,147.05,147.02,16.8]
[1746626236700,20.13543261,147.06,147.02,30.13539387]
[1746626237687,13.33539387,147.05,147.02,16.8]
[1746626238177,13.33539387,147.04,147.02,16.8]
[1746626239397,6.80003874,147.06,147.02,16.8]
[1746626239567,6.3346,147.09,147.03,13.33539387]
[1746626239769,13.33539387,147.09,147.04,13.33539387]
[1746626239977,6.79717237,147.12,147.05,13.33539387]
[1746626240192,6.79717237,147.12,147.07,13.33539387]
[1746626240394,13.33539387,147.11,147.07,30.13539387]
[1746626240775,13.33539387,147.1,147.07,16.8]
[1746626241497,20.13353581,147.1,147.07,16.8]
[1746626241682,6.79814194,147.1,147.07,16.8]
[1746626241892,27.62057273,147.1,147.07,16.8]
[1746626242593,20.82243079,147.08,147.07,16.8]
[1746626243485,27.62145173,147.08,147.07,16.8]
[1746626247207,20.82243079,147.08,147.07,16.8]
[1746626248199,27.62145173,147.08,147.07,16.8]
[1746626248908,27.6333049,147.08,147.07,16.8]
[1746626249279,27.6333049,147.08,147.03,16.8]
[1746626249505,20.83428396,147.04,147.03,16.8]
[1746626251211,23.79362105,147.1,147.03,16.8]
[1746626251388,20.83428396,147.05,147.03,16.8]
[1746626255414,20.83428396,147.06,147.03,16.8]
[1746626256489,20.83428396,147.04,147.03,16.8]
[1746626256793,20.83428396,147.05,147.03,16.8]
[1746626259914,20.83428396,147.06,147.03,16.8]
[1746626260916,20.83428396,147.05,147.03,16.8]
[1746626261814,20.83428396,147.04,147.03,16.8]
[1746626262013,20.83428396,147.04,146.98,16.76]
[1746626262194,20.83428396,146.99,146.98,16.76]
[1746626262789,20.83428396,147.0,146.98,16.76]
[1746626263619,20.83428396,147.01,146.98,16.76]
[1746626263917,20.83428396,147.03,146.98,16.76]
[1746626264215,20.83428396,147.02,146.98,16.76]
[1746626265418,20.83428396,146.99,146.98,16.76]
[1746626265790,20.83428396,147.0,146.98,16.76]
[1746626267422,20.83428396,147.01,146.98,16.76]
[1746626268524,20.83428396,147.02,146.98,16.76]
[1746626270519,20.83428396,147.01,146.98,16.76]
[1746626271404,20.83428396,147.0,146.98,16.76]
[1746626271829,20.83428396,147.01,146.98,16.76]
[1746626273922,20.83428396,147.0,146.98,16.76]
[1746626275024,20.83428396,147.01,146.98,16.76]
[1746626277224,20.83428396,147.0,146.98,16.76]
[1746626279040,20.83428396,147.01,146.98,16.76]
[1746626281030,6.80100651,147.04,146.98,16.76]
[1746626281330,20.83428396,147.02,146.98,16.76]
[1746626282331,20.83428396,147.01,146.98,16.76]
[1746626285835,20.83428396,147.02,146.98,16.76]
[1746626286941,20.83428396,147.01,146.98,16.76]
[1746626287740,20.83428396,147.0,146.98,16.76]
[1746626289942,20.83428396,146.99,146.98,16.76]
[1746626293543,20.83428396,147.0,146.98,16.76]
[1746626295726,20.83428396,146.99,146.98,16.76]
[1746626296123,46.83428396,146.99,146.98,16.76]
[1746626297252,53.63746785,146.99,146.98,16.76]
[1746626297418,46.83428396,146.99,146.94,16.72]
[1746626297623,20.83428396,146.97,146.94,16.72]
[1746626298327,20.83428396,146.96,146.94,16.72]
[1746626298521,20.83428396,146.97,146.94,16.72]
[1746626299831,20.83428396,146.98,146.94,16.72]
[1746626302155,20.83428396,146.97,146.94,16.72]
[1746626304756,20.83428396,146.96,146.94,16.72]
[1746626305135,20.83428396,146.97,146.94,16.72]
[1746626306139,20.83428396,146.98,146.94,16.72]
[1746626307655,20.83428396,146.97,146.94,16.72]
[1746626308370,26.0,146.97,146.94,16.72]
[1746626309558,46.83428396,146.97,146.94,16.72]
[1746626311860,26.0,146.97,146.94,16.72]
[1746626313358,20.83428396,146.98,146.94,16.72]
[1746626313560,46.83428396,146.99,146.94,16.72]
[1746626315358,20.83428396,146.98,146.94,16.72]
[1746626322763,20.83428396,146.97,146.94,16.72]
[1746626323771,13.34836334,146.98,146.94,16.72]
[1746626324551,13.34836334,146.97,146.94,16.72]
[1746626324752,13.34836334,146.96,146.94,16.72]
[1746626325578,13.34836334,146.97,146.94,16.72]
[1746626328575,26.0,146.99,146.94,16.72]
[1746626328769,13.34836334,146.97,146.94,16.72]
[1746626329077,26.0,146.99,146.94,16.72]
[1746626329372,177.04836334,147.01,146.94,18.3202]
[1746626329968,151.04836334,147.01,146.94,18.3202]
[1746626330172,137.7,147.01,146.94,18.3202]
[1746626330352,163.7,147.01,146.94,18.3202]
[1746626330552,13.34836334,146.99,146.94,16.72]
[1746626330769,13.34836334,146.98,146.94,16.72]
[1746626331254,13.34836334,146.97,146.94,16.72]
[1746626331662,13.34836334,146.98,146.94,16.72]
[1746626331962,20.85676082,146.98,146.94,16.72]
[1746626332874,20.85676082,146.96,146.94,16.72]
[1746626334101,20.85676082,146.97,146.94,16.72]
[1746626334266,20.85676082,146.98,146.94,16.72]
[1746626334577,20.85676082,146.99,146.94,16.72]
[1746626336477,13.43535757,147.0,146.94,16.72]
[1746626336689,20.85676082,146.99,146.94,16.72]
[1746626337357,6.6326,147.0,146.94,16.72]
[1746626337560,26.0,146.99,146.94,16.72]
[1746626339487,26.0,146.98,146.94,16.72]
[1746626340161,26.0,146.99,146.94,16.72]
[1746626340486,26.0,146.97,146.94,16.72]
[1746626342279,27.65997639,146.99,146.94,16.72]
[1746626343286,20.85676082,146.98,146.94,16.72]
[1746626344090,20.85676082,146.97,146.94,16.72]
[1746626345288,20.85676082,146.98,146.94,16.72]
[1746626345584,20.85676082,146.97,146.94,16.72]
[1746626347267,20.85676082,146.98,146.94,16.72]
[1746626350188,20.85676082,146.97,146.94,16.72]
[1746626354089,20.85676082,146.98,146.94,16.72]
[1746626355798,20.85676082,146.97,146.94,16.72]
[1746626357579,20.85676082,146.98,146.94,16.72]
[1746626357779,26.0,146.97,146.94,16.72]
[1746626367104,137.7,147.01,146.94,16.72]
[1746626367284,137.7,147.01,146.95,18.64964886]
[1746626367484,26.0,147.01,146.95,18.64964886]
[1746626367789,46.85676082,147.01,146.95,20.16104886]
[1746626370308,26.0,147.01,146.95,20.16104886]
[1746626370812,26.0,146.99,146.95,20.16104886]
[1746626372507,26.0,147.0,146.95,20.16104886]
[1746626376009,20.85676082,147.03,146.95,20.16104886]
[1746626376509,39.12276493,147.04,146.95,20.16104886]
[1746626376898,20.85676082,147.03,146.95,20.16104886]
[1746626377095,20.85676082,147.03,146.95,102.66104886]
[1746626377693,39.12292297,147.04,146.95,102.66104886]
[1746626377899,20.85676082,147.01,146.95,102.66104886]
[1746626378094,20.85676082,147.01,146.95,20.16104886]
[1746626378298,20.85676082,147.0,146.95,1.5114]
[1746626379222,20.85676082,146.98,146.94,16.72]
[1746626380010,20.85676082,146.97,146.94,16.72]
[1746626380497,20.85676082,146.98,146.94,16.72]
[1746626381916,20.85676082,146.99,146.94,16.72]
[1746626384310,26.0,147.03,146.94,16.72]
[1746626384519,46.85676082,147.01,146.94,16.72]
[1746626384704,46.85676082,147.01,146.95,18.64964886]
[1746626385597,20.85676082,147.0,146.95,18.64964886]
[1746626386017,26.0,147.01,146.95,18.64964886]
[1746626386318,20.85676082,147.0,146.95,18.64964886]
[1746626388224,20.85676082,146.99,146.94,16.72]
[1746626389624,20.85676082,147.0,146.94,16.72]
[1746626391023,20.85676082,146.99,146.94,16.72]
[1746626392528,20.85676082,147.0,146.94,16.72]
[1746626393431,26.0,147.01,146.94,16.72]
[1746626393727,46.85676082,147.01,146.94,16.72]
[1746626393916,20.85676082,147.0,146.94,16.72]
[1746626397227,20.85676082,146.99,146.94,16.72]
[1746626398829,20.85676082,147.0,146.94,16.72]
[1746626399329,46.85676082,147.0,146.94,16.72]
[1746626399708,20.85676082,146.99,146.94,16.72]
[1746626400532,26.0,147.0,146.94,16.72]
[1746626400720,20.85676082,146.99,146.94,16.72]
[1746626401141,20.85676082,146.98,146.94,16.72]
[1746626401310,20.85676082,146.95,146.94,16.72]
[1746626402337,26.0,146.96,146.94,16.72]
[1746626402635,46.85676082,146.98,146.94,16.72]
[1746626403247,46.85676082,146.98,146.95,16.62]
[1746626403447,26.0,146.98,146.95,16.62]
[1746626403615,46.85676082,146.98,146.95,16.62]
[1746626407948,46.85676082,146.98,146.96,16.58]
[1746626408721,46.85676082,146.97,146.96,16.58]
[1746626409751,39.35069158,146.97,146.96,16.58]
[1746626410129,99.55756758,146.97,146.92,16.58]
[1746626410321,13.35069158,146.93,146.92,16.58]
[1746626410521,86.206876,146.97,146.92,16.58]
[1746626410719,13.35069158,146.93,146.92,16.58]
[1746626411753,20.86785316,146.93,146.92,16.58]
[1746626412845,20.86785316,146.93,146.89,254.92]
[1746626413145,20.86785316,146.9,146.89,254.92]
[1746626413343,20.86785316,146.9,146.88,16.58]
[1746626413844,6.80646425,146.92,146.88,16.58]
[1746626414142,20.86785316,146.9,146.88,16.58]